bitfinex/quotes_SOLUSD_20250718
["timestamp","ask_amount","ask_price","bid_price","bid_amount"]
[1752873800377,42.24,176.99,176.95,5.43642628]
[1752873800700,42.24,176.99,176.96,0.65]
[1752873801002,47.89010011,176.99,176.96,0.65]
[1752873801976,47.89010011,176.99,176.97,0.65]
[1752873804521,26.0,176.95,176.93,0.03]
[1752873804803,5.43642628,176.95,176.93,0.03]
[1752873805308,73.59642628,176.96,176.94,0.65]
[1752873806390,5.65163332,176.94,176.93,0.03]
[1752873806571,11.0880596,176.94,176.93,0.03]
[1752873806771,5.65163332,176.94,176.93,0.03]
[1752873807075,5.65163332,176.94,176.93,0.68]
[1752873813491,5.65131393,176.95,176.93,0.68]
[1752873814118,31.65108715,176.96,176.94,5.43642628]
[1752873814611,5.65077782,176.97,176.95,6.08642628]
[1752873814782,5.65077782,176.97,176.96,0.65]
[1752873816499,26.0,176.98,176.96,13.86142628]
[1752873816705,153.61005931,176.99,176.97,6.08642628]
[1752873816904,5.71005931,176.99,176.98,0.65]
[1752873817306,26.0,176.96,176.93,0.03]
[1752873817504,26.0,176.96,176.94,0.65]
[1752873817730,68.14,176.97,176.95,0.65]
[1752873817935,5.65099457,176.96,176.93,0.68]
[1752873818627,5.65099457,176.96,176.94,0.65]
[1752873818927,5.65099457,176.96,176.95,0.65]
[1752873819130,5.65099457,176.96,176.93,0.03]
[1752873819307,11.08742085,176.96,176.93,0.03]
[1752873819629,5.43642628,176.94,176.93,0.03]
[1752873820339,11.0880596,176.94,176.93,0.03]
[1752873821391,11.7880596,176.94,176.93,0.03]
[1752873821918,11.0880596,176.94,176.93,0.03]
[1752873824017,6.35163332,176.94,176.93,0.03]
[1752873824217,11.0880596,176.94,176.93,0.03]
[1752873824742,11.7880596,176.94,176.93,0.03]
[1752873825916,11.0880596,176.94,176.93,0.03]
[1752873826939,5.65163332,176.94,176.93,0.03]
[1752873827149,11.0880596,176.94,176.93,0.03]
[1752873829423,11.1480596,176.94,176.93,0.03]
[1752873830536,47.65163332,176.94,176.93,0.75]
[1752873830747,5.71163332,176.94,176.93,0.75]
[1752873832249,0.06,176.94,176.93,0.75]
[1752873839750,0.06,176.94,176.93,6.18642628]
[1752873840247,0.06,176.94,176.93,30.28546299]
[1752873840639,0.06,176.94,176.93,24.84903671]
[1752873840847,0.06,176.94,176.93,30.28546299]
[1752873841154,0.06,176.94,176.93,2.4124]
[1752873841364,0.06,176.94,176.93,7.84882628]
[1752873842453,0.06,176.94,176.93,2.4124]
[1752873842962,0.06,176.94,176.93,7.84882628]
[1752873843159,0.06,176.94,176.93,2.4124]
[1752873844034,0.06,176.94,176.93,7.84882628]
[1752873845364,0.06,176.94,176.93,0.03]
[1752873846058,0.06,176.94,176.93,0.75]
[1752873846366,0.06,176.94,176.93,6.18642628]
[1752873848749,0.06,176.94,176.93,0.75]
[1752873849150,0.06,176.94,176.93,6.18642628]
[1752873853246,0.06,176.94,176.93,0.03]
[1752873853761,0.06,176.94,176.93,0.75]
[1752873854554,0.06,176.94,176.93,6.18642628]
[1752873855654,0.06,176.94,176.93,11.83837902]
[1752873857749,0.06,176.94,176.93,6.18642628]
[1752873858566,0.06,176.94,176.93,0.03]
[1752873859302,5.49642628,176.94,176.93,0.03]
[1752873859459,6.19642628,176.94,176.93,0.03]
[1752873859853,11.1480596,176.94,176.93,0.03]
[1752873860556,11.8480596,176.94,176.93,0.03]
[1752873860977,37.8480596,176.94,176.93,0.03]
[1752873862884,79.4480596,176.94,176.93,0.03]
[1752873863850,73.31163332,176.94,176.93,0.03]
[1752873864079,78.7480596,176.94,176.93,0.03]
[1752873865076,31.71163332,176.94,176.93,0.03]
[1752873866194,37.1480596,176.94,176.93,0.03]
[1752873866782,31.71163332,176.94,176.93,0.03]
[1752873867284,37.1480596,176.94,176.93,0.03]
[1752873867660,31.71163332,176.94,176.93,0.03]
[1752873867860,37.1480596,176.94,176.93,0.03]
[1752873868882,31.71163332,176.94,176.93,0.03]
[1752873869081,0.06,176.94,176.93,0.74]
[1752873876773,0.06,176.94,176.93,0.03]
[1752873877375,0.06,176.94,176.93,0.74]
[1752873877692,0.06,176.94,176.93,0.03]
[1752873879001,5.49642628,176.94,176.93,0.03]
[1752873879200,6.19642628,176.94,176.93,0.03]
[1752873879497,11.8480596,176.94,176.93,0.03]
[1752873883185,11.1480596,176.94,176.93,0.03]
[1752873884199,11.8480596,176.94,176.93,0.03]
[1752873884610,11.1480596,176.94,176.93,0.03]
[1752873885103,11.8480596,176.94,176.93,0.03]
[1752873885897,53.4280596,176.94,176.93,0.03]
[1752873887002,11.1480596,176.94,176.93,0.03]
[1752873887182,5.71163332,176.94,176.93,0.03]
[1752873887384,11.1480596,176.94,176.93,0.03]
[1752873890607,11.8280596,176.94,176.93,0.03]
[1752873892706,11.1480596,176.94,176.93,0.03]
[1752873892906,5.71163332,176.94,176.93,0.03]
[1752873893217,11.1480596,176.94,176.93,0.03]
[1752873893824,5.71163332,176.94,176.93,0.03]
[1752873894179,5.71163332,176.94,176.93,0.71]
[1752873895593,26.06,176.94,176.93,0.71]
[1752873895799,0.06,176.94,176.93,0.71]
[1752873896000,0.06,176.94,176.93,6.14642628]
[1752873900295,0.06,176.94,176.93,0.71]
[1752873900495,0.06,176.94,176.93,6.14642628]
[1752873901701,0.06,176.94,176.93,0.71]
[1752873904299,0.06,176.94,176.93,6.14642628]
[1752873905015,0.06,176.94,176.93,0.71]
[1752873905216,0.06,176.94,176.93,6.14642628]
[1752873907227,0.06,176.94,176.93,0.71]
[1752873907425,0.06,176.94,176.93,6.14642628]
[1752873908317,0.06,176.94,176.93,0.71]
[1752873908514,0.06,176.94,176.93,6.14642628]
[1752873910410,0.06,176.94,176.93,0.71]
[1752873910612,0.06,176.94,176.93,6.14642628]
[1752873914528,0.06,176.94,176.93,0.71]
[1752873921334,0.06,176.94,176.93,0.03]
[1752873921517,0.06,176.94,176.93,4.21737364]
[1752873923136,0.06,176.94,176.93,0.74]
[1752873923341,0.06,176.94,176.93,4.21737364]
[1752873923720,0.06,176.94,176.93,9.86932638]
[1752873926820,0.06,176.94,176.93,6.39195274]
[1752873927023,0.06,176.94,176.93,9.86932638]
[1752873927930,0.06,176.94,176.93,0.74]
[1752873928132,0.06,176.94,176.93,9.86932638]
[1752873929736,0.06,176.94,176.93,6.39195274]
[1752873929940,0.06,176.94,176.93,4.21737364]
[1752873931043,0.06,176.94,176.93,3.50737364]
[1752873931238,0.06,176.94,176.93,0.03]
[1752873931435,0.06,176.94,176.93,4.21737364]
[1752873932643,0.06,176.94,176.93,0.74]
[1752873932845,0.06,176.94,176.93,0.03]
[1752873934154,5.71163332,176.94,176.93,0.03]
[1752873934724,9.84900696,176.94,176.93,0.03]
[1752873935030,6.37163332,176.94,176.93,0.03]
[1752873935327,23.75850152,176.94,176.93,0.03]
[1752873936047,5.65291124,176.9,176.89,1e-08]
[1752873936354,9.13028488,176.9,176.89,1e-08]
[1752873936534,9.79028488,176.9,176.89,1e-08]
[1752873936953,11.75113864,176.9,176.89,1e-08]
[1752873938449,6.31291124,176.9,176.89,1e-08]
[1752873938649,11.75113864,176.9,176.89,1e-08]
[1752873942339,16.35622172,176.9,176.89,1e-08]
[1752873945259,10.91799432,176.9,176.89,1e-08]
[1752873945465,33.14090569,176.9,176.89,1e-08]
[1752873955862,33.14090569,176.9,176.85,0.03]
[1752873955863,26.0,176.87,176.85,0.03]
[1752873956071,46.8382274,176.86,176.85,0.03]
[1752873956976,44.8828312,176.86,176.85,0.03]
[1752873957579,50.53702095,176.86,176.85,0.03]
[1752873957784,51.20702095,176.86,176.85,0.03]
[1752873957954,29.4828312,176.84,176.83,0.03]
[1752873958154,70.8828312,176.84,176.83,0.03]
[1752873958364,71.5528312,176.84,176.83,0.03]
[1752873959569,77.20766042,176.84,176.81,0.03]
[1752873959894,3.4828312,176.82,176.79,0.03]
[1752873960092,29.4828312,176.8,176.79,0.03]
[1752873960254,26.0,176.78,176.77,0.03]
[1752873960452,26.0,176.76,176.75,0.03]
[1752873960756,17.45468397,176.83,176.75,3.5128312]
[1752873960956,26.0,176.79,176.76,5.44351391]
[1752873961192,26.0,176.79,176.77,0.67]
[1752873961390,26.0,176.81,176.78,5.44351391]
[1752873961594,26.0,176.81,176.79,0.67]
[1752873961910,5.44351391,176.8,176.79,0.67]
[1752873962191,46.84351391,176.8,176.77,0.67]
[1752873962397,31.44351391,176.78,176.75,0.7]
[1752873962559,5.44351391,176.76,176.75,0.7]
[1752873962756,5.44351391,176.76,176.75,0.03]
[1752873963357,26.0,176.75,176.71,0.2]
[1752873963580,5.44351391,176.72,176.71,0.2]
[1752873963778,11.10218299,176.72,176.71,0.2]
[1752873964005,5.65866908,176.72,176.71,0.87]
[1752873964185,72.82351391,176.75,176.71,0.87]
[1752873964383,26.0,176.75,176.72,5.44351391]
[1752873964682,26.0,176.78,176.74,5.44351391]
[1752873964885,26.0,176.78,176.75,6.11351391]
[1752873965069,26.0,176.78,176.72,7.9021]
[1752873965070,26.0,176.78,176.76,0.67]
[1752873965276,26.0,176.78,176.74,5.44351391]
[1752873965277,26.0,176.78,176.77,0.67]
[1752873965788,31.6567485,176.78,176.77,0.67]
[1752873966169,26.0,176.78,176.77,6.11351391]
[1752873966381,5.65649045,176.79,176.77,6.11351391]
[1752873966582,31.65618897,176.8,176.78,5.44351391]
[1752873966761,26.0,176.79,176.78,5.44351391]
[1752873967385,5.65618897,176.8,176.78,5.44351391]
[1752873967998,26.0,176.8,176.79,0.67]
[1752873969701,26.0,176.8,176.79,6.11351391]
[1752873970714,5.65578869,176.81,176.79,6.11351391]
[1752873970999,5.65578869,176.81,176.8,0.67]
[1752873971188,5.65578869,176.81,176.74,5.65797062]
[1752873971390,5.65578869,176.81,176.79,0.67]
[1752873971578,5.65578869,176.81,176.8,0.67]
[1752873975498,26.0,176.82,176.8,6.11351391]
[1752873975684,5.65539054,176.83,176.81,6.10351391]
[1752873975881,8.52657488,176.83,176.81,0.66]
[1752873979282,8.52657488,176.83,176.82,0.66]
[1752873984279,2.87118434,176.83,176.82,0.66]
[1752873984479,5.65514901,176.83,176.82,0.66]
[1752873984714,8.50859778,176.83,176.82,0.66]
[1752873984914,2.85344877,176.83,176.82,6.10351391]
[1752873985301,73.05458625,176.85,176.82,6.10351391]
[1752873985616,26.06,176.85,176.83,0.66]
[1752873985785,37.15812208,176.85,176.82,0.66]
[1752873986331,73.03460817,176.85,176.82,0.66]
[1752873987432,78.47812208,176.85,176.82,0.66]
[1752873987722,73.03460817,176.85,176.83,0.66]
[1752873987880,73.03460817,176.85,176.81,5.44351391]
[1752873988081,78.47812208,176.85,176.82,0.66]
[1752873988507,40.02340809,176.85,176.81,5.44351391]
[1752873988708,34.57989418,176.85,176.83,0.66]
[1752873989923,8.57989418,176.85,176.83,0.66]
[1752873993930,8.57989418,176.85,176.78,1.5356]
[1752873993931,26.0,176.81,176.78,1.5356]
[1752873994108,26.0,176.81,176.75,11.82301391]
[1752873994424,5.44351391,176.77,176.75,0.66]
[1752873994627,5.44351391,176.78,176.75,0.66]
[1752873994793,5.44351391,176.79,176.75,0.66]
[1752873995000,5.44351391,176.78,176.76,0.66]
[1752873995218,11.10036598,176.78,176.76,0.66]
[1752873995595,5.65685207,176.78,176.76,0.66]
[1752873996228,52.40036598,176.78,176.76,0.66]
[1752873996434,52.40036598,176.78,176.74,1.5623]
[1752873996725,5.44351391,176.75,176.73,0.03]
[1752873996894,5.44351391,176.75,176.73,0.69]
[1752873997094,52.40154265,176.74,176.73,0.03]
[1752873997394,53.06154265,176.74,176.73,0.03]
[1752873998124,52.40154265,176.74,176.73,0.03]
[1752873998627,46.95802874,176.74,176.73,0.03]
[1752873998809,52.40154265,176.74,176.73,0.03]
[1752873999394,46.95802874,176.74,176.73,0.03]
[1752873999598,5.65802874,176.74,176.73,0.03]
[1752873999815,52.40154265,176.74,176.73,0.03]
[1752874000203,53.06154265,176.74,176.73,0.03]
[1752874000925,52.40154265,176.74,176.73,0.03]
[1752874001925,53.06154265,176.74,176.73,0.03]
[1752874002920,53.06154265,176.74,176.73,1e-08]
[1752874003223,69.84622662,176.74,176.73,1e-08]
[1752874003914,74.06537535,176.74,176.73,1e-08]
[1752874004108,68.62186144,176.74,176.73,1e-08]
[1752874004325,28.54622662,176.74,176.73,1e-08]
[1752874004528,69.84622662,176.74,176.73,1e-08]
[1752874005032,28.54622662,176.74,176.73,1e-08]
[1752874005200,69.84622662,176.74,176.73,1e-08]
[1752874005605,28.54622662,176.74,176.73,1e-08]
[1752874005919,74.06212628,176.74,176.73,1e-08]
[1752874006320,26.0,176.71,176.69,0.03]
[1752874006517,46.74351391,176.7,176.69,0.03]
[1752874006739,42.0,176.7,176.69,0.03]
[1752874006915,47.44351391,176.7,176.69,0.03]
[1752874007117,47.44351391,176.7,176.67,0.2]
[1752874007118,16.78468397,176.69,176.67,0.2]
[1752874007316,84.08468397,176.68,176.67,0.2]
[1752874007513,90.22819788,176.68,176.67,0.2]
[1752874007710,95.88814807,176.68,176.67,0.2]
[1752874007923,101.33166198,176.68,176.67,0.2]
[1752874008235,101.33166198,176.68,176.67,1e-08]
[1752874008529,47.65995019,176.68,176.67,1e-08]
[1752874008734,6.35995019,176.68,176.67,1e-08]
[1752874008917,52.4034641,176.68,176.67,1e-08]
[1752874009322,69.88814807,176.68,176.67,1e-08]
[1752874009918,10.20875472,176.68,176.67,1e-08]
[1752874010123,56.97226863,176.68,176.67,1e-08]
[1752874010311,51.52875472,176.68,176.67,1e-08]
[1752874010512,74.4569526,176.68,176.67,1e-08]
[1752874011022,79.90046651,176.68,176.67,1e-08]
[1752874012247,56.97226863,176.68,176.67,1e-08]
[1752874012451,57.67226863,176.68,176.67,1e-08]
[1752874015231,74.4569526,176.68,176.67,1e-08]
[1752874015424,69.01343869,176.68,176.67,1e-08]
[1752874015622,74.4569526,176.68,176.67,1e-08]
[1752874016242,33.1369526,176.68,176.67,1e-08]
[1752874016738,74.4569526,176.68,176.67,1e-08]
[1752874017410,94.05034199,176.68,176.59,0.2]
[1752874017617,16.78468397,176.59,176.55,0.2]
[1752874017916,26.0,176.52,176.46,0.7]
[1752874018214,31.44351391,176.52,176.47,6.14351391]
[1752874018411,5.66540139,176.51,176.48,0.7]
[1752874018838,5.44351391,176.49,176.46,0.7]
[1752874019037,5.44351391,176.47,176.46,0.7]
[1752874019338,5.44351391,176.47,176.39,1.6309]
[1752874019539,41.32,176.48,176.4,0.7]
[1752874019726,5.44351391,176.45,176.4,6.14351391]
[1752874019926,5.44351391,176.45,176.41,0.7]
[1752874020313,5.44351391,176.42,176.41,0.7]
[1752874020516,11.11180548,176.42,176.41,0.7]
[1752874020928,81.48789462,176.46,176.3,24.17987871]
[1752874021129,5.44351391,176.44,176.41,0.7]
[1752874021334,5.44351391,176.42,176.39,0.7]
[1752874021934,44.41270018,176.46,176.41,5.44351391]
[1752874022138,5.44351391,176.44,176.42,0.7]
[1752874022337,5.44351391,176.43,176.39,0.7]
[1752874022520,5.44351391,176.43,176.33,5.67117207]
[1752874022521,5.44351391,176.4,176.37,0.7]
[1752874022726,5.44351391,176.4,176.38,0.7]
[1752874023732,5.44351391,176.39,176.35,0.7]
[1752874024064,5.44351391,176.37,176.36,0.7]
[1752874024241,5.44351391,176.38,176.36,0.7]
[1752874024447,30.95428039,176.44,176.36,0.7]
[1752874024448,37.11151955,176.43,176.37,5.44351391]
[1752874024624,31.44351391,176.43,176.38,6.14351391]
[1752874024829,26.0,176.43,176.39,6.14351391]
[1752874025026,26.0,176.43,176.41,5.44351391]
[1752874025343,80.30926501,176.46,176.42,6.14351391]
[1752874025551,26.0,176.44,176.43,6.14351391]
[1752874025926,26.0,176.44,176.43,0.7]
[1752874026127,12.96926501,176.46,176.43,0.7]
[1752874026323,26.0,176.44,176.43,6.14351391]
[1752874027440,2.77432164,176.46,176.43,11.8114842]
[1752874027675,11.1089153,176.51,176.45,5.44351391]
[1752874027951,37.1089153,176.51,176.46,5.44351391]
[1752874028127,11.1089153,176.51,176.46,6.14351391]
[1752874028327,5.66636446,176.48,176.43,0.7]
[1752874028526,5.66636446,176.48,176.44,5.44351391]
[1752874028825,0.7,176.47,176.41,1.5376]
[1752874029035,5.44351391,176.43,176.4,0.7]
[1752874029549,26.0,176.43,176.41,0.7]
[1752874029848,26.0,176.43,176.42,5.44351391]
[1752874030026,7.32216114,176.51,176.42,6.14351391]
[1752874030221,41.34,176.51,176.47,5.44351391]
[1752874030453,31.66576813,176.5,176.46,5.44351391]
[1752874030935,53.98820901,176.51,176.49,5.44351391]
[1752874030936,2.77129904,176.51,176.49,5.44351391]
[1752874031126,26.0,176.5,176.49,0.7]
[1752874031654,5.66534855,176.52,176.48,5.44351391]
[1752874031655,26.0,176.49,176.48,5.44351391]
[1752874031965,32.14351391,176.49,176.43,0.7]
[1752874032143,5.44351391,176.46,176.43,0.7]
[1752874032326,5.44351391,176.44,176.39,0.7]
[1752874032651,5.44351391,176.43,176.4,0.7]
[1752874032962,8.90903022,176.43,176.4,0.7]
[1752874033336,5.66764905,176.44,176.4,0.7]
[1752874033824,14.57667927,176.44,176.4,0.7]
[1752874034343,14.57667927,176.44,176.41,0.7]
[1752874034743,26.0,176.44,176.37,5.6698985]
[1752874034926,8.90903022,176.43,176.39,8.90903022]
[1752874035131,34.90903022,176.44,176.4,0.7]
[1752874035533,8.90903022,176.43,176.4,0.7]
[1752874035937,34.90903022,176.44,176.4,0.71]
[1752874037150,34.90903022,176.44,176.39,8.90903022]
[1752874037151,26.0,176.44,176.41,0.71]
[1752874037356,26.0,176.44,176.42,0.71]
[1752874037649,26.0,176.44,176.37,5.6698985]
[1752874037859,26.0,176.44,176.43,0.71]
[1752874038960,26.0,176.45,176.43,9.61903022]
[1752874039125,26.0,176.45,176.44,0.71]
[1752874040158,67.34,176.49,176.44,9.61903022]
[1752874040338,26.0,176.47,176.46,8.90903022]
[1752874040538,26.0,176.47,176.46,9.61903022]
[1752874041435,147.9,176.5,176.46,9.61903022]
[1752874041635,173.9,176.5,176.48,8.90903022]
[1752874041838,2.84599415,176.51,176.48,8.90903022]
[1752874042034,26.0,176.49,176.48,8.90903022]
[1752874042263,26.0,176.49,176.48,9.61903022]
[1752874043551,178.84543609,176.55,176.48,9.61903022]
[1752874043747,26.0,176.51,176.49,0.71]
[1752874043935,28.83628019,176.51,176.49,9.61903022]
[1752874044758,28.83628019,176.51,176.49,0.71]
[1752874044959,28.83628019,176.51,176.5,8.90903022]
[1752874045350,34.50173143,176.51,176.49,0.71]
[1752874045661,34.50173143,176.51,176.49,9.61903022]
[1752874046666,28.83628019,176.51,176.49,9.61903022]
[1752874047243,28.83628019,176.51,176.5,8.90903022]
[1752874047670,28.83628019,176.51,176.49,0.71]
[1752874047851,28.83628019,176.51,176.49,9.61903022]
[1752874048049,8.90903022,176.5,176.45,17.55573022]
[1752874048261,8.90903022,176.46,176.41,1.6504]
[1752874048448,8.90903022,176.43,176.4,0.74]
[1752874048978,8.90903022,176.44,176.4,0.74]
[1752874049146,8.90903022,176.45,176.41,0.71]
[1752874050047,8.90903022,176.49,176.44,8.90903022]
[1752874050259,8.90903022,176.46,176.42,0.71]
[1752874050766,8.90903022,176.46,176.42,9.61903022]
[1752874050961,8.90903022,176.46,176.43,0.71]
[1752874051553,8.90903022,176.46,176.42,8.90903022]
[1752874051750,8.90903022,176.46,176.43,0.71]
[1752874052578,5.66699752,176.47,176.43,0.71]
[1752874052769,5.66699752,176.47,176.44,0.71]
[1752874052968,14.57602774,176.47,176.44,0.71]
[1752874054555,8.90903022,176.46,176.42,8.90903022]
[1752874054759,8.90903022,176.46,176.43,0.71]
[1752874055694,14.57612203,176.46,176.43,0.71]
[1752874055904,5.66709181,176.46,176.43,0.71]
[1752874056068,14.57612203,176.46,176.43,0.71]
[1752874056276,5.66709181,176.46,176.43,0.71]
[1752874056484,14.57612203,176.46,176.43,0.71]
[1752874056667,8.90903022,176.45,176.43,0.71]
[1752874056996,13.10901344,176.44,176.4,0.03]
[1752874057211,8.90903022,176.42,176.4,0.03]
[1752874057371,8.90903022,176.41,176.4,0.03]
[1752874057784,31.66861289,176.41,176.4,0.03]
[1752874058298,35.87519823,176.41,176.4,0.03]
[1752874059000,30.20658534,176.41,176.4,0.03]
[1752874059989,35.87910633,176.41,176.4,0.03]
[1752874060372,30.21049344,176.41,176.4,0.03]
[1752874061268,35.87910633,176.41,176.4,0.03]
[1752874064094,44.78813655,176.41,176.4,0.03]
[1752874064497,45.44813655,176.41,176.4,0.03]
[1752874064872,82.55764311,176.41,176.4,0.03]
[1752874065074,95.90349673,176.41,176.4,0.03]
[1752874065397,73.64861289,176.41,176.4,0.03]
[1752874066971,82.56190221,176.41,176.4,0.03]
[1752874069797,81.90190221,176.41,176.4,0.03]
[1752874070181,82.62190221,176.41,176.4,0.03]
[1752874071714,81.90190221,176.41,176.4,0.03]
[1752874072396,82.62190221,176.41,176.4,0.03]
[1752874074313,81.90190221,176.41,176.4,0.03]
[1752874075894,40.58190221,176.41,176.4,0.03]
[1752874076313,41.30190221,176.41,176.4,0.03]
[1752874076982,40.58190221,176.41,176.4,0.03]
[1752874077622,31.66861289,176.41,176.4,0.03]
[1752874077917,26.0,176.41,176.4,0.73]
[1752874079118,31.66757238,176.45,176.4,9.64328932]
[1752874079319,31.66757238,176.45,176.42,8.91328932]
[1752874079526,31.66757238,176.45,176.43,0.7]
[1752874079809,5.66757238,176.45,176.43,0.7]
[1752874080844,5.66757238,176.45,176.44,0.7]
[1752874081143,31.66757238,176.45,176.44,0.7]
[1752874082141,31.66757238,176.45,176.42,0.7]
[1752874082638,31.66757238,176.45,176.41,8.91328932]
[1752874082819,31.66757238,176.45,176.43,0.7]
[1752874084552,5.66757238,176.45,176.43,0.7]
[1752874084836,50.91328932,176.44,176.4,0.03]
[1752874085044,8.91328932,176.41,176.4,0.03]
[1752874085930,9.63328932,176.41,176.4,0.03]
[1752874086747,15.30190221,176.41,176.4,0.03]
[1752874088108,5.66861289,176.41,176.4,0.03]
[1752874088314,14.58190221,176.41,176.4,0.03]
[1752874088918,14.58190221,176.41,176.38,0.03]
[1752874088919,31.4715029,176.39,176.38,0.03]
[1752874089317,32.1915029,176.39,176.38,0.03]
[1752874089846,26.0,176.39,176.38,0.03]
[1752874090050,37.14075852,176.39,176.38,0.03]
[1752874093730,31.66925562,176.39,176.38,0.73]
[1752874093928,31.66925562,176.39,176.38,0.03]
[1752874094146,37.14075852,176.39,176.38,0.03]
[1752874098762,37.14075852,176.39,176.38,0.72]
[1752874099633,37.14075852,176.39,176.38,0.03]
[1752874100740,79.12075852,176.39,176.38,0.03]
[1752874100925,79.12075852,176.39,176.33,2.3433]
[1752874100926,5.4715029,176.36,176.33,2.3433]
[1752874101131,5.4715029,176.36,176.33,1.6533]
[1752874101359,87.82239468,176.39,176.34,0.69]
[1752874101360,5.4715029,176.35,176.34,0.69]
[1752874101531,0.72,176.38,176.34,0.69]
[1752874101731,5.4715029,176.35,176.34,0.69]
[1752874102139,0.72,176.38,176.33,1.6533]
[1752874102348,5.4715029,176.35,176.33,0.69]
[1752874102553,5.6708631,176.34,176.33,0.69]
[1752874104031,14.89552821,176.37,176.32,0.03]
[1752874104231,5.4715029,176.34,176.32,0.72]
[1752874104431,5.4715029,176.34,176.33,0.69]
[1752874105134,56.13552821,176.37,176.33,0.69]
[1752874105335,5.4715029,176.34,176.33,0.69]
[1752874106268,11.142366,176.34,176.33,0.69]
[1752874107337,11.142366,176.34,176.32,0.03]
[1752874107535,5.4715029,176.33,176.32,0.72]
[1752874108035,11.142366,176.34,176.32,0.72]
[1752874108663,5.4715029,176.33,176.32,0.72]
[1752874110940,19.84577001,176.36,176.33,0.03]
[1752874111153,11.142366,176.34,176.33,0.03]
[1752874113339,11.142366,176.34,176.33,0.72]
[1752874114044,11.142366,176.34,176.33,0.03]
[1752874114652,5.6708631,176.34,176.33,0.72]
[1752874114846,11.142366,176.34,176.33,0.72]
[1752874116048,5.6708631,176.34,176.33,0.72]
[1752874116250,11.142366,176.34,176.33,0.72]
[1752874116651,5.6708631,176.34,176.33,0.72]
[1752874117059,11.142366,176.34,176.33,0.72]
[1752874119549,5.67022,176.36,176.33,6.1915029]
[1752874119748,5.67022,176.36,176.34,6.1615029]
[1752874120068,5.67022,176.36,176.35,0.69]
[1752874121474,5.66957704,176.38,176.35,0.69]
[1752874121655,0.06,176.4,176.37,5.4715029]
[1752874121656,5.72897941,176.4,176.37,5.4715029]
[1752874121856,5.72897941,176.4,176.38,6.1615029]
[1752874122057,5.72897941,176.4,176.39,0.69]
[1752874122365,0.06,176.4,176.39,6.1615029]
[1752874122759,0.06,176.4,176.39,29.44948687]
[1752874124273,0.06,176.4,176.39,23.97798397]
[1752874124454,5.5315029,176.4,176.36,1.5701]
[1752874124654,5.4715029,176.39,176.37,0.69]
[1752874124897,0.06,176.4,176.38,0.69]
[1752874125066,5.5315029,176.4,176.38,0.69]
[1752874125676,5.66925562,176.39,176.38,0.69]
[1752874128480,11.14075852,176.39,176.36,2.2901]
[1752874128993,5.66925562,176.39,176.37,0.72]
[1752874129202,11.14075852,176.39,176.37,0.72]
[1752874129777,5.66925562,176.39,176.37,0.72]
[1752874130964,5.66925562,176.39,176.38,0.72]
[1752874132377,0.06,176.4,176.38,0.72]
[1752874132580,0.06,176.4,176.36,7.0416029]
[1752874132864,0.06,176.4,176.39,0.72]
[1752874134075,0.06,176.4,176.39,6.1915029]
[1752874145901,0.06,176.4,176.39,0.72]
[1752874146290,0.06,176.4,176.39,6.1915029]
[1752874148298,5.5315029,176.4,176.33,26.03]
[1752874148486,5.4715029,176.38,176.34,0.72]
[1752874149209,6.1715029,176.38,176.34,0.72]
[1752874149387,5.4715029,176.39,176.34,6.1915029]
[1752874149590,6.1715029,176.39,176.34,6.1915029]
[1752874149978,11.14107994,176.38,176.34,5.4715029]